Cogmind - Beta 12 @@@ ROGUE MODE // 2023.12.24 @ 11:53:46 Player: Horse Result: Destroyed by as-33705 with Assembled Focal Cannon Performance ------------- Evolutions (3) 1500 Regions Visited (11) 2200 Robots Destroyed (250) 1250 Value Destroyed (8998) 8998 Prototype IDs (26) 520 Alien Tech Used (0) 0 Bonus (4866) 4866 TOTAL SCORE: 19334 Bonus ------- High Alert Combat Kills 2627 Follower Combat Kills 928 Entered Garrisons 200 Destroyed Z-Imprinter 1000 Triggered Deep Caves Wall 500 Exposed GOLEM Chamber 500 Friendly Fire -889 Cogmind --------- Core Integrity 0/700 Matter 255/300 Energy 29/100 System Corruption 0% Temperature Cool (6) Movement Core (350) Ox6 Location -7/Deep Caves Parts ------- > --- POWER (1) -------- (None) > --- PROPULSION (3) --- (None) > --- UTILITY (5) ------ Large Storage Unit Core Analyzer > --- WEAPON (4) ------- (None) > --- INVENTORY (15) --- Experimental Heat Sink Improved Coolant Injector Weapon Cycler Improved Reaction Control System Component Analysis Suite Zionite Laser-S Zionite Laser-S Zionite Phaser-S Peak State ------------ > --- POWER ------------ Zionite Light DM Reactor > --- PROPULSION ------- Zionite Glidesys I Zionite Glidesys I Zionite Glidesys I > --- UTILITY ---------- Large Storage Unit Core Analyzer Improved Reaction Control System Advanced Drone Bay > --- WEAPON ----------- Zionite Laser-S RU-N14's Throwing Claymores RU-N14's Throwing Claymores RU-N14's Throwing Claymores > --- INVENTORY -------- Zionite Light DM Reactor Zionite Glidesys I Experimental Heat Sink Improved Coolant Injector Weapon Cycler Phase Shifter Zionite Weapon Casing Zionite Light Carapace Zionite Heavy Carapace Component Analysis Suite Zionite Laser-S Zionite Laser-S Zionite Phaser-S Zionite Phaser-S [Rating: 84] Favorites ----------- Power Light Nuclear Core Engine Cooled Ion Engine Power Core Light Nuclear Core Reactor Zionite Light DM Reactor Propulsion Compact Wheel Treads Armored Treads Leg Aluminum Leg Wheel Compact Wheel Hover Unit Zionite Glidesys I Utility Large Storage Unit Device Terrain Scanner Storage Large Storage Unit Processor Salvage Targeting Computer Hackware Authchip [Device] Protection Core Shielding Weapon Gauss Rifle Energy Gun Zionite Laser-S Ballistic Gun Gauss Rifle Launcher Rocket Launcher Special Weapon RU-N14's Throwing Claymores Build | -11 -10 -9 -9 -8 -8 -8 -7 -7 -7 -7 -7 ------- Run | Jun Mat Mat Sto Mat Gar Mat Fac Low Low Zio Dee Slots Evolved 6 | . . 2 . 2 . . 2 . . . . Power . | . . . . . . . . . . . . Propulsion 1 | . . . . . . . 1 . . . . Utility 3 | . . 1 . 1 . . 1 . . . . Weapon 2 | . . 1 . 1 . . . . . . . Parts Attached 317 | 6 6 46 38 24 34 7 98 10 5 14 29 Power 21 | 1 . 6 1 1 2 . 6 . 1 1 2 Engine 12 | 1 . 6 1 1 1 . 1 . . 1 . Core 7 | . . . . . 1 . 5 . 1 . . Reactor 2 | . . . . . . . . . . . 2 Propulsion 45 | 2 . 9 4 3 4 . 12 1 1 3 6 Treads 10 | . . 3 2 2 . . 1 1 1 . . Leg 12 | 2 . 4 . . 3 . 1 . . 2 . Wheel 18 | . . 2 2 1 1 . 9 . . 1 2 Hover 5 | . . . . . . . 1 . . . 4 Flight . | . . . . . . . . . . . . Utility 160 | 1 2 20 22 15 15 5 57 6 1 3 13 Device 81 | . 1 5 14 7 10 2 32 2 . 2 6 Storage 9 | 1 1 1 . 2 2 . . . 1 . 1 Processor 9 | . . 3 . 1 . . 3 2 . . . Hackware 4 | . . . 1 1 . . 2 . . . . Protection 57 | . . 11 7 4 3 3 20 2 . 1 6 Artifact . | . . . . . . . . . . . . Weapon 91 | 2 4 11 11 5 13 2 23 3 2 7 8 Energy Gun 35 | 2 2 5 4 2 4 . 11 . . . 5 Energy Cannon . | . . . . . . . . . . . . Ballistic Gun 25 | . 1 2 3 1 2 1 9 2 2 2 . Ballistic Cannon . | . . . . . . . . . . . . Launcher 23 | . 1 4 4 1 6 1 3 1 . 2 . Special Weapon 8 | . . . . 1 1 . . . . 3 3 Impact Weapon . | . . . . . . . . . . . . Slashing Weapon . | . . . . . . . . . . . . Piercing Weapon . | . . . . . . . . . . . . Special Melee Weapon . | . . . . . . . . . . . . Unidentified Prototypes 22 | . . 3 1 2 . . 6 . . 2 8 Parts Lost 52 | . 2 6 2 6 7 1 10 2 2 . 14 Power 7 | . . 2 . 1 1 . . . 1 . 2 Propulsion 16 | . . 3 1 . 3 . 4 1 . . 4 Utility 9 | . . . . 3 . . 2 . . . 4 Weapon 20 | . 2 1 1 2 3 1 4 1 1 . 4 Highest Loss Streak 13 | . 1 2 1 6 1 1 3 2 1 . 13 To Critical Strikes 1 | . . . . . . . . . 1 . . Average Slot Usage (%) 96 | . 87 97 99 97 99 98 96 96 95 98 93 Engine 4 | . 14 10 10 8 6 . . . . 5 1 Core 2 | . . . . . 2 9 7 7 2 1 . Treads 5 | . . 12 12 13 5 . 1 2 7 2 . Leg 6 | . 28 5 . . 11 18 3 . . 11 4 Wheel 7 | . . 3 9 4 1 . 15 17 14 7 6 Hover 1 | . . . . . . . . . . . 10 Device 6 | . 2 8 9 9 6 5 6 4 . 5 8 Storage 8 | . 14 11 11 9 9 9 7 7 7 7 7 Processor 9 | . . 4 4 4 9 9 10 9 15 15 10 Protection 9 | . . 7 7 12 11 12 11 15 15 8 5 Energy Gun 10 | . 16 12 19 21 13 11 9 2 . . 14 Ballistic Gun 15 | . 11 19 10 9 14 16 17 22 22 24 4 Launcher 3 | . . 1 3 1 6 6 2 4 7 . . Special Weapon 1 | . . . . 3 . . . . . 3 9 Naked Turns . | . . . . . . . . . . . . Heaviest Build 69 | 12 17 43 43 53 50 47 55 50 55 56 69 Greatest Support 48 | 20 20 40 40 40 40 20 48 42 32 40 42 Greatest Overweight (x) 17 | . . 6 2 3 4 2 17 1 3 4 6 Average Overweight (x) 1 | . . 1 1 1 1 1 1 1 1 2 2 Largest Inventory Capacity 15 | 8 10 15 15 15 15 15 15 15 15 15 15 Average Capacity 14 | 7 9 13 15 14 13 15 15 15 15 15 15 Most Carried 15 | 3 10 15 15 15 15 15 15 15 15 15 15 Average Carried 13 | 1 7 12 14 13 13 14 14 14 15 14 13 Final Capacity 15 | 8 10 15 15 15 15 15 15 15 15 15 15 Final Carried 15 | 3 9 15 15 15 15 15 15 15 15 15 8 Class Distribution -------------------- 21% | Scavenger-Tank 20% | Scavenger-Gunner 14% | Mutant 14% | Tank 7% | Skirmisher 6% | Derelict-Mutant 5% | Commander-Tank 4% | Derelict-Gunner 4% | Scavenger-Mutant Dominant Class ---------------- Mutant | -10/Materials Tank | -9/Materials Commander-Tank | -9/Storage Tank | -8/Materials Mutant | -8/Garrison Scavenger-Tank | -8/Materials Scavenger-Tank | -7/Factory Scavenger-Tank | -7/Lower Caves Scavenger-Gunner | -7/Lower Caves Derelict-Mutant | -7/Zion Scavenger-Gunner | -7/Deep Caves Resources | -11 -10 -9 -9 -8 -8 -8 -7 -7 -7 -7 -7 ----------- Run | Jun Mat Mat Sto Mat Gar Mat Fac Low Low Zio Dee Matter Collected 6593 | 260 82 770 621 372 1094 298 2157 271 301 45 322 Remotely 1232 | . . . 179 197 391 . 465 . . . . Salvage Created 9391 | 148 340 1493 1357 720 964 297 3043 178 361 . 490 Parts 485 | 7 23 93 64 30 56 15 157 7 16 . 17 Haulers Intercepted 13 | . . 4 2 2 . . 5 . . . . Recyclers Shooed 6 | . . 1 2 . . . 3 . . . . Parts Field Recycled . | . . . . . . . . . . . . Retrieved Matter . | . . . . . . . . . . . . Parts Self-Destructed 20 | . . . . . . . . 6 14 . . Prevented . | . . . . . . . . . . . . Kills | -11 -10 -9 -9 -8 -8 -8 -7 -7 -7 -7 -7 ------- Run | Jun Mat Mat Sto Mat Gar Mat Fac Low Low Zio Dee Combat Hostiles Destroyed 215 | . 12 27 27 13 31 7 49 4 6 . 39 Guns 106 | . 9 20 5 9 12 4 38 3 4 . 2 Cannons 4 | . . . . . 1 . . . . . 3 AOE 103 | . 3 7 22 3 18 3 10 1 2 . 34 Classes Destroyed 20 | 3 2 6 2 1 2 1 . 1 . . 2 Worker 13 | 2 . 3 3 1 . 1 3 . . . . Builder 7 | . . 4 . . . . 3 . . . . Tunneler 4 | 1 . 1 . 1 . . 1 . . . . Hauler 14 | . . 4 2 2 . . 6 . . . . Recycler 10 | 1 . 3 2 . . . 4 . . . . Minesweeper 4 | . . . . . . . . 2 2 . . Mechanic 1 | . . . 1 . . . . . . . . Operator 3 | . . 2 1 . . . . . . . . Watcher 8 | . . 5 2 . . . 1 . . . . Swarmer 29 | . 6 4 . . 11 . 6 2 . . . Grunt 95 | . 6 16 19 11 16 2 20 1 4 . . Brawler 9 | . . 1 4 . 1 1 2 . . . . Duelist 7 | . . . . . 3 1 3 . . . . Protector 5 | . . . 3 . . . 2 . . . . Sentry 19 | . . 6 1 1 2 2 5 1 1 . . Hunter 7 | . . . . . . 1 5 . 1 . . Programmer 6 | . . . . . 1 . 5 . . . . Heavy 2 | . . . . 1 . . 1 . . . . Z-Light 5 | . . . . . . . . . . . 5 Assembled 33 | . . . . . . . . . . . 33 Thug 1 | . . . 1 . . . . . . . . Best Kill Streak 33 | 2 3 12 15 9 7 4 6 3 3 . 33 Combat Bots Only 33 | . 3 5 11 8 7 3 5 3 3 . 33 Max Kills in Single Turn 15 | 1 2 7 7 2 4 2 5 2 2 . 15 Gunslinging 1 | . 1 1 . . . . 1 . . . . Exploded 15 | . 2 2 6 2 4 1 5 1 2 . 15 Melee . | . . . . . . . . . . . . Uniques/NPCs Destroyed 1 | . . . . . . . . . . . 1 Z-Imprinter (-7/Deep Caves) Combat | -11 -10 -9 -9 -8 -8 -8 -7 -7 -7 -7 -7 -------- Run | Jun Mat Mat Sto Mat Gar Mat Fac Low Low Zio Dee Damage Taken 8183 | . 339 947 571 976 884 239 1935 251 251 . 1790 Core 1258 | . 62 147 63 110 122 41 190 22 47 . 454 Absorbed by Shields 414 | . . . 13 55 200 31 115 . . . . Redirected to Shielding 243 | . . . 1 21 24 9 30 4 11 . 143 Regen/Repaired (Parts) 222 | . . 101 81 . . 40 . . . . . Core Remaining (%) 68 | 100 75 . 47 . . 50 . . . . . Volleys Fired 460 | 9 32 83 34 39 85 11 115 12 16 1 23 Largest 4 | 2 2 3 3 4 4 4 4 4 3 1 4 Hottest 211 | 80 80 111 153 200 155 155 211 156 84 28 148 Shots Fired 1200 | 18 59 199 75 105 183 33 394 43 43 1 47 Gun 1088 | 18 57 184 60 101 144 30 389 42 42 1 20 Cannon . | . . . . . . . . . . . . Launcher 79 | . 2 15 15 2 35 3 5 1 1 . . Special 33 | . . . . 2 4 . . . . . 27 Kinetic 602 | . 17 105 20 39 66 18 246 35 42 1 13 Thermal 242 | . . 26 40 61 14 . 94 . . . 7 Explosive 96 | . 2 14 6 2 35 3 5 1 1 . 27 Electromagnetic 260 | 18 40 54 9 3 68 12 49 7 . . . Robot Hit Streak 17 | 3 13 13 17 15 12 5 14 7 9 . 8 Robot Miss Streak 9 | 2 6 7 5 5 5 1 7 6 5 . 9 Penetration Max 1 | . . . . . . . 1 . . . 1 Secondary Targets 16 | . 2 4 1 2 1 . 6 . . . . Max Gunslinging Chain 2 | . 1 2 1 1 1 . 1 . . . . Shots Hit Robots 734 | 10 41 135 48 80 69 27 252 24 31 . 17 Core Hits 631 | 4 20 99 86 46 61 16 174 17 28 . 80 Critical Kills 4 | . . . . . . . 4 . . . . Critical Parts Destroyed 4 | . . . . . . . 2 . 1 . 1 Critical Strikes 21 | . 2 2 1 5 . . 9 . 1 . 1 Burn 8 | . . . 1 5 . . 2 . . . . Destroy 8 | . . . . . . . 6 . 1 . 1 Corrupt 5 | . 2 2 . . . . 1 . . . . Melee Attacks . | . . . . . . . . . . . . Impact . | . . . . . . . . . . . . Slashing . | . . . . . . . . . . . . Piercing . | . . . . . . . . . . . . Sneak Attacks . | . . . . . . . . . . . . Combat Hostiles . | . . . . . . . . . . . . Follow-up Attacks . | . . . . . . . . . . . . Damage Inflicted 25840 | 134 630 3123 2872 1653 2905 787 6058 570 712 . 6396 Guns 11969 | 134 477 1668 658 1411 1200 415 4663 469 515 . 359 Cannons . | . . . . . . . . . . . . Explosions 13549 | . 153 1439 2214 242 1666 372 1395 101 197 . 5770 Melee . | . . . . . . . . . . . . Ramming 16 | . . 16 . . . . . . . . . Kinetic 6681 | . 104 832 163 572 701 274 2923 409 515 . 188 Thermal 4081 | . 83 494 750 815 410 84 1274 . . . 171 Explosive 12204 | . 70 1259 1465 242 1417 288 1395 101 197 . 5770 Electromagnetic 2591 | 134 373 522 494 24 377 141 466 60 . . . Impact . | . . . . . . . . . . . . Slashing 267 | . . . . . . . . . . . 267 Piercing . | . . . . . . . . . . . . Highest Corruption 6 | . . . 5 4 6 6 5 . . . . Average Corruption 4 | . . . 3 3 4 6 2 . . . . Corruption Purged 5 | . . . . . . . 5 . . . . Corruption Blocked . | . . . . . . . . . . . . Effects 130 | . . . 16 1 70 10 33 . . . . Message Errors 29 | . . . 8 . 15 3 3 . . . . Matter Fused 31 | . . . 3 . 16 3 9 . . . . Heat Flow Errors 15 | . . . . . 11 1 3 . . . . Energy Discharges 16 | . . . 3 . 6 1 6 . . . . Parts Rejected 1 | . . . . . 1 . . . . . . Parts Fused 2 | . . . . . 1 . 1 . . . . Data Loss (minor) 11 | . . . 1 1 6 2 1 . . . . Data Loss (major) 10 | . . . 1 . 5 . 4 . . . . Misfires 9 | . . . . . 6 . 3 . . . . Alerts 3 | . . . . . 2 . 1 . . . . Weapon Failures 3 | . . . . . 1 . 2 . . . . Overload Shots . | . . . . . . . . . . . . Overflow Damage 378 | . . 113 14 . 14 20 54 2 . . 161 Projectiles 43 | . . . . . . . . . . . 43 Explosions 335 | . . 113 14 . 14 20 54 2 . . 118 Melee . | . . . . . . . . . . . . Knockbacks 1 | . . 1 . . . . . . . . . Impact 1 | . . 1 . . . . . . . . . Kinetic . | . . . . . . . . . . . . Secondary . | . . . . . . . . . . . . Self-Inflicted Damage 1004 | . 38 282 83 8 284 22 195 37 55 . . Shots 38 | . 1 10 2 1 12 1 6 2 3 . . Rammed 1 | . . 1 . . . . . . . . . Targets Rammed 2 | . . 1 . . . . 1 . . . . Kicked . | . . . . . . . . . . . . Crushed 1 | . . . . . . . 1 . . . . Highest Temperature 683 | 54 126 246 353 231 683 189 434 247 8 . 325 Average Temperature 80 | 22 46 64 93 80 82 80 89 75 2 . 148 Received Heat Transfer 2076 | . 72 276 181 372 243 69 461 114 45 . 243 Effects 5 | . . . . . 4 . 1 . . . . Shutdowns 1 | . . . . . 1 . . . . . . Interference 1 | . . . . . 1 . . . . . . Short Circuit 1 | . . . . . . . 1 . . . . Damage (minor) 1 | . . . . . 1 . . . . . . Damage (core) 1 | . . . . . 1 . . . . . . Siege Activations . | . . . . . . . . . . . . Robots Corrupted 2 | . . . 2 . . . . . . . . Combat Hostiles . | . . . . . . . . . . . . Parts Fried 5 | . . 1 4 . . . . . . . . Impact Corruptions . | . . . . . . . . . . . . Robots Melted 2 | . . . . 1 . . 1 . . . . Combat Hostiles 2 | . . . . 1 . . 1 . . . . Parts Melted 9 | . . 1 . 2 . . 4 . . . 2 Heat Transferred 7427 | . 100 645 1309 2055 595 50 2451 . . . 222 Parts Sabotaged . | . . . . . . . . . . . . Parts Stolen . | . . . . . . . . . . . . Parts Stripped . | . . . . . . . . . . . . Power Chain Reactions 12 | . 1 4 3 . 3 1 . . . . . Missiles Intercepted . | . . . . . . . . . . . . Alert | -11 -10 -9 -9 -8 -8 -8 -7 -7 -7 -7 -7 ------- Run | Jun Mat Mat Sto Mat Gar Mat Fac Low Low Zio Dee Peak Influence 2624 | 20 271 652 1481 1077 2624 1373 1331 . . . . Initial 1279 | . 13 61 200 625 605 1279 476 . . . . Average 903 | 5 121 435 879 854 1631 1249 631 . . . . Maximum Alert Level 5 | . 1 2 4 3 5 4 4 . . . . Low Security (%) 6 | 100 91 3 . . . . . . . . . Level 1 17 | . 8 45 16 . . . 26 . . . . Level 2 22 | . . 50 12 12 4 . 38 . . . . Level 3 23 | . . . 49 87 16 6 26 . . . . Level 4 14 | . . . 21 . 22 93 8 . . . . Level 5 15 | . . . . . 56 . . . . . . High Security . | . . . . . . . . . . . . Max Security . | . . . . . . . . . . . . Squads Dispatched 40 | . 2 4 10 4 . 1 19 . . . . Investigation 12 | . 1 . 4 2 . . 5 . . . . Extermination 4 | . . . . . . . 4 . . . . Reinforcement 11 | . 1 3 1 1 . . 5 . . . . Assault 9 | . . 1 5 . . 1 2 . . . . Garrison 4 | . . . . 1 . . 3 . . . . Intercept . | . . . . . . . . . . . . Searches Triggered . | . . . . . . . . . . . . Construction Impeded 3 | . . 1 1 . . . 1 . . . . Haulers Reinforced 3 | . . . . . . . 3 . . . . Active Scanning Responses . | . . . . . . . . . . . . Cargo Convoy Interrupts . | . . . . . . . . . . . . Stealth | -11 -10 -9 -9 -8 -8 -8 -7 -7 -7 -7 -7 --------- Run | Jun Mat Mat Sto Mat Gar Mat Fac Low Low Zio Dee Distress Signals 15 | . 1 3 2 4 . 1 3 1 . . . Communications Jammed 14 | . . . . . . . 14 . . . . Distress Signals 14 | . . . . . . . 14 . . . . Times Spotted 272 | . 17 48 53 25 30 9 63 8 4 . 15 Peak Tracking Total 23 | . 4 6 13 6 6 5 6 4 1 . 23 Tactical Retreats 4 | . . . . . 2 . 1 . . . 1 Traps | -11 -10 -9 -9 -8 -8 -8 -7 -7 -7 -7 -7 ------- Run | Jun Mat Mat Sto Mat Gar Mat Fac Low Low Zio Dee Traps Triggered 16 | . 1 . 3 3 6 . 3 . . . . Indirectly . | . . . . . . . . . . . . Trap Hack Attempts . | . . . . . . . . . . . . Triggered . | . . . . . . . . . . . . Disarmed . | . . . . . . . . . . . . Reprogrammed . | . . . . . . . . . . . . Reused . | . . . . . . . . . . . . Traps Extracted . | . . . . . . . . . . . . Installed 3 | . . . . . . . . 2 1 . . Triggered 2 | . . . . . . . . 1 1 . . Most Traps Carried 1 | . . . . . . . . 1 . . . Machines | -11 -10 -9 -9 -8 -8 -8 -7 -7 -7 -7 -7 ---------- Run | Jun Mat Mat Sto Mat Gar Mat Fac Low Low Zio Dee Machines Disabled 26 | . . 4 7 . 8 . 6 . . . 1 Max in Single Turn 2 | . . 2 2 . 1 . 1 . . . 1 Garrison Access 1 | . . . . . . . 1 . . . . Garrison Relay 6 | . . . . . 6 . . . . . . Machines Repaired . | . . . . . . . . . . . . Machines Sabotaged . | . . . . . . . . . . . . Overloaded Fab Kills . | . . . . . . . . . . . . Hacking | -11 -10 -9 -9 -8 -8 -8 -7 -7 -7 -7 -7 --------- Run | Jun Mat Mat Sto Mat Gar Mat Fac Low Low Zio Dee Machines Accessed 53 | . 5 9 13 5 2 5 12 . 1 1 . Terminals 35 | . 5 5 12 3 2 2 6 . . . . Fabricators 1 | . . . . . . . 1 . . . . Repair Stations 6 | . . 2 1 . . 2 1 . . . . Recycling Units 3 | . . 1 . 1 . . 1 . . . . Scanalyzers 3 | . . 1 . . . 1 1 . . . . Garrison Access 3 | . . . . 1 . . 2 . . . . Total Hacks 178 | . 25 43 32 18 4 15 36 . 1 4 . Successful 77 | . 10 22 14 8 . 10 8 . 1 4 . Failed 100 | . 14 21 18 10 4 5 28 . . . . Catastrophic 25 | . 3 1 8 2 1 2 8 . . . . Database Lockouts 1 | . 1 . . . . . . . . . . Manual 72 | . 11 25 9 11 . 5 7 . . 4 . Terminals 122 | . 25 31 26 9 4 6 21 . . . . Fabricators 3 | . . . . . . . 3 . . . . Repair Stations 22 | . . 8 6 . . 7 1 . . . . Recycling Units 12 | . . 2 . 7 . . 3 . . . . Scanalyzers 7 | . . 2 . . . 2 3 . . . . Garrison Access 7 | . . . . 2 . . 5 . . . . Terminal Hacks 41 | . 9 9 9 3 . 4 2 . 1 4 . Record 1 | . . . . . . . . . 1 . . Part Schematic 4 | . . . . . . . . . . 4 . Robot Schematic 3 | . 1 1 1 . . . . . . . . Robot Analysis 6 | . 2 1 . 2 . 1 . . . . . Prototype ID Bank 5 | . 3 . 1 1 . . . . . . . Open Door 5 | . . . 5 . . . . . . . . Branch Access Points 1 | . . 1 . . . . . . . . . Terminal Index 3 | . 1 1 1 . . . . . . . . Alert Level 2 | . 1 . . . . 1 . . . . . Unreport Threat 4 | . . 1 . . . 2 1 . . . . Locate Traps 2 | . . 1 . . . . 1 . . . . Dispatch Records 2 | . . 2 . . . . . . . . . Patrol Status 1 | . . 1 . . . . . . . . . Recall Investigation 2 | . 1 . 1 . . . . . . . . Fabricator Hacks 2 | . . . . . . . 2 . . . . Load Schematic 1 | . . . . . . . 1 . . . . Build 1 | . . . . . . . 1 . . . . Repair Station Hacks 13 | . . 6 3 . . 4 . . . . . Scan Component 8 | . . 3 2 . . 3 . . . . . Repair 5 | . . 3 1 . . 1 . . . . . Recycling Unit Hacks 2 | . . 1 . 1 . . . . . . . Retrieve Components 2 | . . 1 . 1 . . . . . . . Scanalyzer 3 | . . . . . . 2 1 . . . . Insert Component 2 | . . . . . . 1 1 . . . . Analyze 1 | . . . . . . 1 . . . . . Garrison Access Hacks 2 | . . . . 1 . . 1 . . . . Unlock Access 1 | . . . . 1 . . . . . . . Seal Access 1 | . . . . . . . 1 . . . . Unauthorized Hacks 14 | . 1 6 2 3 . . 2 . . . . Terminals 11 | . 1 6 2 . . . 2 . . . . Track 3 | . . 1 1 . . . 1 . . . . Botnet 4 | . 1 3 . . . . . . . . . Disrupt 3 | . . 1 1 . . . 1 . . . . Operators 1 | . . 1 . . . . . . . . . Fabricators . | . . . . . . . . . . . . Repair Stations . | . . . . . . . . . . . . Recycling Units 3 | . . . . 3 . . . . . . . Reject 1 | . . . . 1 . . . . . . . Recyclers 1 | . . . . 1 . . . . . . . Mask 1 | . . . . 1 . . . . . . . Scanalyzers . | . . . . . . . . . . . . Garrison Access . | . . . . . . . . . . . . Data Cores Recovered . | . . . . . . . . . . . . Used . | . . . . . . . . . . . . Hacking Detections 48 | . 5 9 10 5 2 5 12 . . . . Full Trace Events 14 | . 3 2 3 1 1 . 4 . . . . Feedback Events . | . . . . . . . . . . . . Feedback Blocked . | . . . . . . . . . . . . Robot Schematics Acquired 6 | . 1 1 1 . . . . . . 3 . Robots Built 1 | . . . . . . . 1 . . . . Authchips 1 | . . . . . . . 1 . . . . Time 40 | . . . . . . . 40 . . . . Total Robot Build Rating 1 | . . . . . . . 1 . . . . Part Schematics Acquired 19 | . . . . . . 1 . . . 18 . Parts Built . | . . . . . . . . . . . . Authchips . | . . . . . . . . . . . . Time . | . . . . . . . . . . . . Total Part Build Rating . | . . . . . . . . . . . . Parts Repaired 5 | . . 3 1 . . 1 . . . . . Time 186 | . . 96 64 . . 26 . . . . . Parts Recycled . | . . . . . . . . . . . . Recycled Matter . | . . . . . . . . . . . . Retrieved Matter . | . . . . . . . . . . . . Retrieved Components 10 | . . 3 . 7 . . . . . . . Parts Scanalyzed 2 | . . . . . . 1 1 . . . . Part Schematics Acquired 1 | . . . . . . 1 . . . . . Parts Damaged . | . . . . . . . . . . . . Bothacking | -11 -10 -9 -9 -8 -8 -8 -7 -7 -7 -7 -7 ------------ Run | Jun Mat Mat Sto Mat Gar Mat Fac Low Low Zio Dee Used RIF Installer . | . . . . . . . . . . . . Robots Hacked . | . . . . . . . . . . . . Non-combat . | . . . . . . . . . . . . Combat . | . . . . . . . . . . . . Robot Hacks Applied . | . . . . . . . . . . . . Relay Couplers Released 23 | . . . . . 23 . . . . . . Machine Destruction 20 | . . . . . 20 . . . . . . Programmers 3 | . . . . . 3 . . . . . . Fabnet Peak Effective % . | . . . . . . . . . . . . Robots Rewired 3 | . . . . . 3 . . . . . . Allies Hacked . | . . . . . . . . . . . . Hacks Repelled . | . . . . . . . . . . . . Allies | -11 -10 -9 -9 -8 -8 -8 -7 -7 -7 -7 -7 -------- Run | Jun Mat Mat Sto Mat Gar Mat Fac Low Low Zio Dee Total Allies 27 | . . . 12 . 3 . 1 . . 11 . Largest Group 11 | . . . 11 5 3 . 1 . . 11 11 Highest-Rated Group 314 | . . . 119 71 54 . 11 . . 314 314 Highest-Rated Ally 39 | . . . 31 31 18 . 11 . . 39 39 Total Orders 39 | . . . . 2 . . 31 . . . 6 STAY 10 | . . . . 1 . . 7 . . . 2 FOLLOW 6 | . . . . 1 . . 5 . . . . DROP 1 | . . . . . . . 1 . . . . PICKUP 5 | . . . . . . . 5 . . . . COLLECT 2 | . . . . . . . 2 . . . . EXPLORE 8 | . . . . . . . 5 . . . 3 RETURN 7 | . . . . . . . 6 . . . 1 Ally Attacks 285 | . . . 105 53 . . . . . . 127 Total Damage 3314 | . . . 1258 612 . . . . . . 1444 Kills 43 | . . . 18 10 . . . . . . 15 Allies Corrupted 1 | . . . 1 . . . . . . . . Allies Melted . | . . . . . . . . . . . . Intel | -11 -10 -9 -9 -8 -8 -8 -7 -7 -7 -7 -7 ------- Run | Jun Mat Mat Sto Mat Gar Mat Fac Low Low Zio Dee Robot Analysis Total 5 | . 2 1 . 2 . . . . . . . Derelict Logs Recovered 3 | . . . . . . . . 1 2 . . Drone Launches 11 | . . . . . . . 9 . . . 2 Drone Recoveries 10 | . . . . . . . 9 . . . 1 Exploration | -11 -10 -9 -9 -8 -8 -8 -7 -7 -7 -7 -7 ------------- Run | Jun Mat Mat Sto Mat Gar Mat Fac Low Low Zio Dee Turns Passed 14715 | 115 560 1670 1173 594 2741 406 2771 483 1082 1416 1704 Spaces Moved 8039 | 62 372 806 674 268 1142 134 1420 348 859 983 971 Core 12 | 3 . 2 . . . . 6 . . . 1 Treads 690 | . . 282 62 87 259 . . . . . . Legs 1758 | 59 372 148 . . 698 134 225 . . 122 . Wheels 5010 | . . 374 612 181 185 . 1189 348 859 861 401 Hover 569 | . . . . . . . . . . . 569 Flight . | . . . . . . . . . . . . Fastest Speed 50 | 50 120 115 130 115 145 190 93 108 115 120 105 Average Speed 148 | 116 120 154 138 148 196 245 136 113 117 139 158 Slowest Speed 900 | 120 120 350 250 250 400 260 900 115 145 280 350 Overloaded Moves . | . . . . . . . . . . . . Propulsion Burnouts . | . . . . . . . . . . . . Robots Hopped . | . . . . . . . . . . . . Cave-ins Triggered . | . . . . . . . . . . . . Exploration Rate (%) 60 | 4 70 59 88 34 89 21 35 58 93 85 86 Regions Visited 11 Branch Regions 5 Pre-discovered Areas 3 | . . . . . . . . 1 . 2 . Known Exits Taken 4 | . . 1 1 1 . . . . 1 . . Unknown Exits Taken 6 | 1 1 . . . . 1 1 1 . 1 . Scrap Searched 11 | . . . . . . . . 4 4 3 . Spaces Dug 39 | . . . . . 39 . . . . . . Terrain Destroyed 791 | . 16 142 47 19 247 35 120 33 25 . 107 Melee . | . . . . . . . . . . . . Projectile 12 | . . . . . . 2 6 2 . . 2 AOE 779 | . 16 142 47 19 247 33 114 31 25 . 105 Terrain Rammed . | . . . . . . . . . . . . Walls Destroyed . | . . . . . . . . . . . . Machines Disabled . | . . . . . . . . . . . . Actions | -11 -10 -9 -9 -8 -8 -8 -7 -7 -7 -7 -7 --------- Run | Jun Mat Mat Sto Mat Gar Mat Fac Low Low Zio Dee Total 9880 | 84 429 1070 837 380 1483 189 1974 407 894 1028 1105 Wait 709 | 4 10 81 83 27 110 33 278 22 11 18 32 Move 8029 | 61 371 805 673 268 1141 133 1419 347 858 982 971 Hop . | . . . . . . . . . . . . Pick Up 116 | 4 8 27 6 15 14 2 19 6 . . 15 Fast Attach 97 | 5 2 10 2 2 3 3 35 5 3 12 15 Attach 46 | 1 2 5 2 8 6 1 11 1 . 1 8 Detach 13 | . 1 2 . . 1 . 3 1 . 1 4 Swap 175 | . 2 32 34 14 25 3 52 4 2 1 6 Drop 141 | . 1 24 3 7 10 3 41 7 3 12 30 Fire 460 | 9 32 83 34 39 85 11 115 12 16 1 23 Melee . | . . . . . . . . . . . . Ram 1 | . . 1 . . . . . . . . . Kick . | . . . . . . . . . . . . Crush 1 | . . . . . . . 1 . . . . Escape Stasis 28 | . . . . . 28 . . . . . . Rewire 61 | . . . . . 60 . . . . . 1 Trap 3 | . . . . . . . . 2 1 . . Miscellaneous . | . . . . . . . . . . . . Route ------- -11/Junkyard -10/Materials (discovered 2 exits: *Mat / [*Min]) -9/Materials (discovered 5 exits: *Mat / *Min x2 / *Sto x2) -9/Storage -8/Materials -8/Garrison (discovered 3 exits: *Mat x3) -8/Materials -7/Factory (discovered 3 exits: *Fac x2 / [*Low]) -7/Lower Caves -7/Lower Caves (discovered 2 exits: *Fac / *Zio) -7/Zion (discovered 2 exits: [*Dee] / [*Pro]) -7/Deep Caves (discovered 1 exit: [*Pro]) History --------- Turn | Location | Event 4 | -11/Junkyard | Discovered new exit (range 15) 116 | -11/Junkyard | Entered Materials 304 | -10/Materials | Build established: Mutant 355 | -10/Materials | Discovered new exit (range 16) 525 | -10/Materials | Central database locked down 603 | -10/Materials | Discovered new exit (range 10) 676 | -10/Materials | Entered another Materials area 676 | -9/Materials | Evolved 2 slots: Utility x1, Weapon x1 712 | -9/Materials | Discovered new exit (range 15) 1165 | -9/Materials | Discovered new exit (range 8) 1343 | -9/Materials | Build established: Tank 1536 | -9/Materials | Discovered new exit (range 15) 1650 | -9/Materials | Repaired Hpw. Tractor Beam 1677 | -9/Materials | Repaired Grenade Launcher? 1701 | -9/Materials | Identified exit to Materials 1753 | -9/Materials | Identified exit to Mines 1753 | -9/Materials | Identified exit to Storage 2073 | -9/Materials | Repaired Imp. Heat Sink 2276 | -9/Materials | First assault squad dispatched 2346 | -9/Materials | Entered Storage 2482 | -9/Storage | Met a pair of Derelict thieves 2579 | -9/Storage | Destroyed 8 combat bots 2723 | -9/Storage | Repaired Broken Cld. Ion Engine 2758 | -9/Storage | Assisted by bots powering up and referring to "LRC-V3" 2867 | -9/Storage | Discovered exit to Materials (range 15) 3144 | -9/Storage | Build established: Commander-Tank 3146 | -9/Storage | First assault squad dispatched 3187 | -9/Storage | Core integrity fell below 50% 3289 | -9/Storage | Destroyed 11 combat bots 3519 | -9/Storage | Entered Materials 3519 | -8/Materials | Accompanied by 5 allies 3519 | -8/Materials | Evolved 2 slots: Utility x1, Weapon x1 3880 | -8/Materials | Lost 6 parts (1p3u2w) 3901 | -8/Materials | Destroyed 8 combat bots 4048 | -8/Materials | Garrison activated, responded to threat 4113 | -8/Materials | Identified exit to Garrison 4113 | -8/Materials | Entered Garrison 4191 | -8/Garrison | Garrison Relay disabled 4269 | -8/Garrison | Destroyed 7 combat bots 4292 | -8/Garrison | Triggered checkpoint 4356 | -8/Garrison | Build established: Tank 4384 | -8/Garrison | Triggered checkpoint 4387 | -8/Garrison | Garrison Relay disabled 4472 | -8/Garrison | Triggered checkpoint 4479 | -8/Garrison | Discovered new exit (range 14) 4696 | -8/Garrison | Triggered checkpoint 4841 | -8/Garrison | Discovered new exit (range 12) 4890 | -8/Garrison | Garrison Relay disabled 4949 | -8/Garrison | Triggered checkpoint 5040 | -8/Garrison | Discovered new exit (range 10) 5076 | -8/Garrison | Triggered checkpoint 5104 | -8/Garrison | Triggered checkpoint 5130 | -8/Garrison | Garrison Relay disabled 5411 | -8/Garrison | Build established: Mutant 5414 | -8/Garrison | Triggered checkpoint 5441 | -8/Garrison | Garrison Relay disabled 5573 | -8/Garrison | Garrison Relay disabled 6004 | -8/Garrison | Triggered checkpoint 6369 | -8/Garrison | Triggered checkpoint 6854 | -8/Garrison | Entered Materials 7126 | -8/Materials | Repaired Core Shielding 7204 | -8/Materials | Build established: Scavenger-Tank 7253 | -8/Materials | Discovered new exit (range 4) 7254 | -8/Materials | First assault squad dispatched 7260 | -8/Materials | Entered Factory 7260 | -7/Factory | Evolved 2 slots: Propulsion x1, Utility x1 8112 | -7/Factory | Lost 3 parts (1n1u1w) 8278 | -7/Factory | Garrison activated, responded to threat 8506 | -7/Factory | Discovered new exit (range 15) 8673 | -7/Factory | Fabricated A-02 Transporter? 8809 | -7/Factory | Discovered new exit (range 15) 8855 | -7/Factory | Identified exit to Factory 8888 | -7/Factory | Found Prototype Launcher 8889 | -7/Factory | Identified Rocket Array 9276 | -7/Factory | Build established: Scavenger-Gunner 9285 | -7/Factory | First assault squad dispatched 9586 | -7/Factory | Build established: Scavenger-Tank 9965 | -7/Factory | Discovered new exit (range 14) 10031 | -7/Factory | Entered Lower Caves 10104 | -7/Lower Caves | Met a Warlord Commander 10105 | -7/Lower Caves | Learned location of Warlord (-5) 10110 | -7/Lower Caves | Found Encrypted Comm Array 10177 | -7/Lower Caves | Attracted the attention of an 0b10 checkpoint 10217 | -7/Lower Caves | Learned Factory emergency access door positions 10500 | -7/Lower Caves | Discovered new exit (range 8) 10514 | -7/Lower Caves | Entered another Lower Caves area 10670 | -7/Lower Caves | Attracted the attention of an 0b10 checkpoint 10673 | -7/Lower Caves | Build established: Scavenger-Gunner 10997 | -7/Lower Caves | Discovered exit to Factory (range 11) 11122 | -7/Lower Caves | Learned Factory emergency access door positions 11234 | -7/Lower Caves | Identified exit to Zion 11596 | -7/Lower Caves | Entered Zion 11710 | -7/Zion | Discovered new exit (range 15) 11778 | -7/Zion | Found Prototype Special Weapon 11778 | -7/Zion | Identified RU-N14's Throwing Claymores 11957 | -7/Zion | Gained Derelict followers 12087 | -7/Zion | Gained Derelict followers 12135 | -7/Zion | Gained Derelict followers 12155 | -7/Zion | Build established: Derelict-Mutant 12176 | -7/Zion | Given A8's code to call for help 12193 | -7/Zion | Learned location of Data Miner (-6) 12290 | -7/Zion | Acquired unknown access codes intercepted by a Zionite 12765 | -7/Zion | Found RU-N14's Throwing Claymores 12768 | -7/Zion | Found RU-N14's Throwing Claymores 12963 | -7/Zion | Opened final containment barrier to the Deep Caves 12983 | -7/Zion | Discovered new exit (range 5) 12986 | -7/Zion | Saw the warning signs outside the Deep Caves entrance 13012 | -7/Zion | Entered Deep Caves 13012 | -7/Deep Caves | Accompanied by 11 allies 13070 | -7/Deep Caves | Build established: Derelict-Gunner 13291 | -7/Deep Caves | Attacked by Z-Imprinter 13303 | -7/Deep Caves | Destroyed Z-Imprinter 13569 | -7/Deep Caves | Found Prototype Protection 13569 | -7/Deep Caves | Identified Zio. Weapon Casing 13647 | -7/Deep Caves | Found Prototype Protection 13647 | -7/Deep Caves | Identified Zio. Heavy Carapace 13839 | -7/Deep Caves | Build established: Scavenger-Gunner 14277 | -7/Deep Caves | Discovered new exit (range 22) 14515 | -7/Deep Caves | Found Zio. Weapon Casing 14664 | -7/Deep Caves | Exposed GOLEM chamber 14665 | -7/Deep Caves | Triggered Deep Caves wall 14696 | -7/Deep Caves | Core integrity fell below 50% 14711 | -7/Deep Caves | Spotted as-33705 14713 | -7/Deep Caves | Core integrity fell below 20% 14715 | -7/Deep Caves | Destroyed 33 combat bots 14716 | -7/Deep Caves | Destroyed by as-33705 with Assembled Focal Cannon Last Messages --------------- 14689_ Zio. Light Carapace destroyed. 14690_ RD-7CQ(h) knocked back. 14692_ RU-N14's Throwing Claymores expended. 14692_ Destroyed Asb. Hover Unit. 14692_ as-20706 destroyed. 14692_ XW-9WW(M) destroyed. 14693_ Zio. Glidesys I destroyed. 14694_ Knocked back. 14694_ Destroyed Asb. Hover Unit. 14694_ as-04174 destroyed. 14694_ as-29025 destroyed. 14695_ Zio. Heavy Carapace destroyed. 14698_ Phase Shifter destroyed. 14706_ Zio. Light DM Reactor destroyed. 14706_ RU-N14's Throwing Claymores expended. 14708_ HV Slug penetrates 7P-MI8(g). 14708_ 7P-MI8(g) suffers critical hit (Destroy). 14712_ as-33705: "DSI9AT1D G8OHIBQ29FWG 26R186 QD12WHW8W33 TDK1 81FTS" 14712_ RU-N14's Throwing Claymores destroyed. 14713_ PD-SHG(l) suffers critical hit (Destroy). Map ----- +----------------------------------------------------+ | ??????????????????????????????## #??## #???? | | ???????????????????????????????# #???# #?### | | ???????????????????????????????# ##??## ### | | ?????????????????????##????????# ##???# ## | | ?????????????????????# ????????# #????# | | ???????????????? ### ????????# #????# | | ????????????? # ????????# #????# #### | | ??????????? ! #?????### #???## | | ?????????? ????## #???# | | ????????? ! ????# #???# ###### | | ???????? !! #??## ##??# #????# | | ??????? [ ##?# #??## #????? | | ??????? [[ g #?# ##?## ##????? | | ?????? #?# ### ##?????? | | ?????? #?## ##?????## | | ?????? ! ! ##?### ###?????## | | ??????" ##############???????# | | ??????" =! % #????????????????## | | ?????"" = ! ????????????????## | | ????""! M = ????????????????## | | ????"!! = * #?????????????#### | | ?????# * ;#????????????## | | ?????" * g ;#??????????### | | ?????" % * h ############# | | ?????" G * * ! | | ?????""" !%@ | | ?????" l * % | | ?????"" ##;;######## ## | | ?????" #?###??????## ### | | ?????"" n ##???????????###?# ## | | ?????" # # #????????????????####### | | ?????" #### ## ## ##??????????????????????## | | ?????""" #????# ?#??###????????????????????????# | | ??????" ???????#????????????????????????????????? | | ??????#??????????????????????????????????????????? | | | | | | | | | | | | | | | | | | | | | | | | | | | | | | | +----------------------------------------------------+ Best States ------------- Heat Dissipation 65 Coolant Potential 80 Energy Generation 27 Energy Capacity 700 Matter Stores 300 Matter Capacity 300 Sight Range 16 Terrain Scan Range 16 Terrain Scan Density 110 Jamming Range 12 Armor Coverage 1200 Resistance: KI 25 Resistance: TH 25 Resistance: EM 15 Core Shielding 20 Weapon Shielding 100 Weapon Cycling 15 Phase Shifting 5 Evasion (%) 60 Target Analysis 5 Core Analysis 6 Recoil Reduction 2 Energy Filtering 30 Salvage Targeting 1 Offensive Hacking 10 Defensive Hacking 10 Authchip Count 2 Item Schematics ----------------- Adv. Drone Bay | -8/Materials | Scanalyzed Riot Gun | -7/Zion | Free Battle Cannon | -7/Zion | Free Bore Cannon | -7/Zion | Free Flamer | -7/Zion | Free Hvy. Riot Gun | -7/Zion | Archive Hvy. Plasma Cannon | -7/Zion | Archive Gatling Laser | -7/Zion | Archive Imp. Trap Scanner | -7/Zion | Archive Enh. Gauss Cannon | -7/Zion | Archive Imp. Field Recycling Unit | -7/Zion | Archive Cloaking Device | -7/Zion | Archive Remote Datajack | -7/Zion | Archive Energy Well | -7/Zion | Archive Hvy. Machine Gun | -7/Zion | Archive Matter Filter | -7/Zion | Archive Power Sword | -7/Zion | Archive Force Booster | -7/Zion | Archive Hyp. Gauss Cannon | -7/Zion | Archive Robot Schematics ------------------ M-13 Machinist | -10/Materials | Hacked R-06 Scavenger | -9/Materials | Hacked A-02 Transporter | -9/Storage | Hacked T-07 Excavator | -7/Zion | Archive L-31 Rogue | -7/Zion | Archive H-88 Terminator | -7/Zion | Archive Fabricated ------------ A-02 Transporter | x1 | -7/Factory | Authchip Alien Tech Used ----------------- None Achievements -------------- None Challenges ------------ None Game ------ Seed CommBottomlessRailgun Manual? 0 Play Time 03:09:58 Cumulative 1092.9 hours Start 2023.12.06 @ 01:26:53 End 2023.12.24 @ 11:53:46 Sessions 8 Manual Loads 0 Difficulty Rogue Special Mode None Game No. 456 Rogue 456 Adventurer 0 Explorer 0 Win Type - Total 14 Types 12/0/1/1/0/0/0/0/0 Lore% 72 Gallery% 84 Achievement% 71 Wizard Run 0 Options --------- ASCII 0 Keyboard 1 Movement Numpad Keybinds 0 Fullscreen 1 Font 18/SmallcapsGlow Map View 112x50 Tactical HUD 1 Map Filters NONE Filters NONE Steam 1 RUN: 5c5724a6-e5f7-4e3c-9902-5e4a6a599752